[Event "Early-Titled-Tuesday-Blitz-January-16-2024"]
[Site "Chess.com"]
[Date "2024.01.16"]
[Round "1"]
[White "whitemirrorninja"]
[Black "adotand"]
[Result "1/2-1/2"]
[WhiteElo "2497"]
[BlackElo "2897"]
[TimeControl "180+1"]
[EndTime "8:10:53 PST"]
[Termination "Game drawn by 50-move rule"]

1. e4 {[%clk 0:03:00.9]} 1... c5 {[%clk 0:03:00.5]} 2. Nf3 {[%clk 0:03:00.3]}
2... Nc6 {[%clk 0:03:00.9]} 3. Nc3 {[%clk 0:02:59.1]} 3... d6 {[%clk 0:02:59.6]}
4. g3 {[%clk 0:02:56.2]} 4... Nf6 {[%clk 0:02:59.4]} 5. Bg2 {[%clk 0:02:56.8]}
5... e5 {[%clk 0:02:59]} 6. O-O {[%clk 0:02:56.1]} 6... Be7 {[%clk 0:02:59.5]}
7. d3 {[%clk 0:02:54.4]} 7... h6 {[%clk 0:02:59.9]} 8. a3 {[%clk 0:02:51.8]}
8... O-O {[%clk 0:02:59.2]} 9. Rb1 {[%clk 0:02:52.2]} 9... a6 {[%clk 0:02:56.3]}
10. h3 {[%clk 0:02:50.3]} 10... Be6 {[%clk 0:02:55.2]} 11. Be3 {[%clk
0:02:47.5]} 11... d5 {[%clk 0:02:53.5]} 12. exd5 {[%clk 0:02:46.2]} 12... Nxd5
{[%clk 0:02:54.4]} 13. Bd2 {[%clk 0:02:42.9]} 13... Qd7 {[%clk 0:02:52.2]} 14.
Re1 {[%clk 0:02:42.5]} 14... Bf6 {[%clk 0:02:43.4]} 15. Kh2 {[%clk 0:02:25.9]}
15... Rfe8 {[%clk 0:02:40.6]} 16. Ne4 {[%clk 0:02:14]} 16... Be7 {[%clk
0:02:41]} 17. Nc3 {[%clk 0:02:14.7]} 17... Bd6 {[%clk 0:02:29.5]} 18. Ne4 {[%clk
0:02:14.3]} 18... Bf8 {[%clk 0:02:26.5]} 19. Nc3 {[%clk 0:02:13.3]} 19... Qd6
{[%clk 0:02:23.2]} 20. Ne4 {[%clk 0:02:11.9]} 20... Qc7 {[%clk 0:02:23.2]} 21.
Nc3 {[%clk 0:02:11.4]} 21... Rad8 {[%clk 0:02:23.3]} 22. Nh4 {[%clk 0:02:11]}
22... Nxc3 {[%clk 0:02:18.2]} 23. bxc3 {[%clk 0:02:08.4]} 23... Bd5 {[%clk
0:02:15.9]} 24. Bxd5 {[%clk 0:02:01.9]} 24... Rxd5 {[%clk 0:02:16.8]} 25. Nf5
{[%clk 0:02:00.7]} 25... Kh7 {[%clk 0:02:11.2]} 26. Qf3 {[%clk 0:01:57.4]} 26...
Rd7 {[%clk 0:02:10.2]} 27. Re4 {[%clk 0:01:54.1]} 27... Re6 {[%clk 0:01:57.5]}
28. Rbe1 {[%clk 0:01:52.4]} 28... Qd8 {[%clk 0:01:49.6]} 29. Rh4 {[%clk
0:01:51.4]} 29... Kg8 {[%clk 0:01:45.9]} 30. Rg4 {[%clk 0:01:49.6]} 30... Kh8
{[%clk 0:01:42.1]} 31. a4 {[%clk 0:01:44.3]} 31... Qf6 {[%clk 0:01:38.7]} 32.
Kg2 {[%clk 0:01:37.1]} 32... Kh7 {[%clk 0:01:21]} 33. Rh4 {[%clk 0:01:35.3]}
33... Kg8 {[%clk 0:00:51.2]} 34. Rg4 {[%clk 0:01:33.5]} 34... h5 {[%clk
0:00:41.7]} 35. Rge4 {[%clk 0:01:21.5]} 35... g6 {[%clk 0:00:40.3]} 36. Ne3
{[%clk 0:01:03.9]} 36... Qxf3+ {[%clk 0:00:39.7]} 37. Kxf3 {[%clk 0:01:04.8]}
37... f5 {[%clk 0:00:39.4]} 38. Rc4 {[%clk 0:01:05]} 38... Na5 {[%clk
0:00:39.8]} 39. Bc1 {[%clk 0:00:54.1]} 39... e4+ {[%clk 0:00:39.2]} 40. Ke2
{[%clk 0:00:52.9]} 40... exd3+ {[%clk 0:00:38.6]} 41. cxd3 {[%clk 0:00:52.6]}
41... Nxc4 {[%clk 0:00:39.5]} 42. dxc4 {[%clk 0:00:52.9]} 42... Bg7 {[%clk
0:00:39.9]} 43. Bd2 {[%clk 0:00:52.9]} 43... g5 {[%clk 0:00:37.6]} 44. f4 {[%clk
0:00:50.6]} 44... gxf4 {[%clk 0:00:38]} 45. gxf4 {[%clk 0:00:51.5]} 45... Re4
{[%clk 0:00:38.8]} 46. Rg1 {[%clk 0:00:48]} 46... Kf8 {[%clk 0:00:38.3]} 47. Rg5
{[%clk 0:00:42.3]} 47... Rxf4 {[%clk 0:00:37.8]} 48. Nxf5 {[%clk 0:00:38.2]}
48... Re4+ {[%clk 0:00:38.4]} 49. Kf3 {[%clk 0:00:37.6]} 49... Re6 {[%clk
0:00:37.5]} 50. Bf4 {[%clk 0:00:30.3]} 50... Bxc3 {[%clk 0:00:37.3]} 51. Rxh5
{[%clk 0:00:29.3]} 51... Rf7 {[%clk 0:00:34.5]} 52. Kg4 {[%clk 0:00:28.9]} 52...
Rg6+ {[%clk 0:00:34.1]} 53. Rg5 {[%clk 0:00:21.4]} 53... Rxg5+ {[%clk
0:00:33.7]} 54. Kxg5 {[%clk 0:00:21.5]} 54... Bf6+ {[%clk 0:00:29.4]} 55. Kg6
{[%clk 0:00:21.2]} 55... Bd4 {[%clk 0:00:29.7]} 56. Bd6+ {[%clk 0:00:20.1]}
56... Ke8 {[%clk 0:00:30.2]} 57. h4 {[%clk 0:00:19]} 57... Rf6+ {[%clk
0:00:29.8]} 58. Kg5 {[%clk 0:00:19.5]} 58... Kf7 {[%clk 0:00:28.3]} 59. h5
{[%clk 0:00:19.3]} 59... Bb2 {[%clk 0:00:28.2]} 60. Bf4 {[%clk 0:00:19.3]} 60...
Re6 {[%clk 0:00:26.3]} 61. Ne3 {[%clk 0:00:19.5]} 61... Bf6+ {[%clk 0:00:26.3]}
62. Kf5 {[%clk 0:00:19.6]} 62... Bd4 {[%clk 0:00:27.2]} 63. Nd5 {[%clk
0:00:19.8]} 63... Re2 {[%clk 0:00:27]} 64. h6 {[%clk 0:00:20.1]} 64... Rg2
{[%clk 0:00:25.9]} 65. Ke4 {[%clk 0:00:20]} 65... Kg6 {[%clk 0:00:24.7]} 66.
Ne7+ {[%clk 0:00:18.9]} 66... Kh7 {[%clk 0:00:24.8]} 67. Nf5 {[%clk 0:00:19.3]}
67... Re2+ {[%clk 0:00:24.8]} 68. Kd3 {[%clk 0:00:19.1]} 68... Rf2 {[%clk
0:00:25.2]} 69. Ke4 {[%clk 0:00:12.2]} 69... Bf6 {[%clk 0:00:24.9]} 70. Bd6
{[%clk 0:00:11.4]} 70... Rc2 {[%clk 0:00:23.3]} 71. Kd5 {[%clk 0:00:11.1]} 71...
Ra2 {[%clk 0:00:20]} 72. Ke6 {[%clk 0:00:09.7]} 72... Bc3 {[%clk 0:00:19.5]} 73.
Bxc5 {[%clk 0:00:09.7]} 73... Rxa4 {[%clk 0:00:20]} 74. Nd6 {[%clk 0:00:08.7]}
74... Bb4 {[%clk 0:00:16.2]} 75. Nxb7 {[%clk 0:00:07.7]} 75... Bxc5 {[%clk
0:00:15.8]} 76. Nxc5 {[%clk 0:00:08.6]} 76... Rxc4 {[%clk 0:00:16.4]} 77. Kd5
{[%clk 0:00:07.3]} 77... Rg4 {[%clk 0:00:15.8]} 78. Nxa6 {[%clk 0:00:06.8]}
78... Kxh6 {[%clk 0:00:16.7]} 79. Nc5 {[%clk 0:00:06.5]} 79... Kg6 {[%clk
0:00:17.6]} 80. Ne6 {[%clk 0:00:06.4]} 80... Rg1 {[%clk 0:00:18.5]} 81. Nd4
{[%clk 0:00:06.7]} 81... Kf6 {[%clk 0:00:18.9]} 82. Ke4 {[%clk 0:00:07.6]} 82...
Re1+ {[%clk 0:00:19.3]} 83. Kd5 {[%clk 0:00:07.4]} 83... Re8 {[%clk 0:00:19.8]}
84. Nc6 {[%clk 0:00:06.9]} 84... Re2 {[%clk 0:00:20.1]} 85. Kd6 {[%clk
0:00:07.2]} 85... Rd2+ {[%clk 0:00:20.5]} 86. Kc5 {[%clk 0:00:07.9]} 86... Ke6
{[%clk 0:00:20.7]} 87. Nd4+ {[%clk 0:00:08.4]} 87... Kf6 {[%clk 0:00:20]} 88.
Kd5 {[%clk 0:00:08.5]} 88... Rd1 {[%clk 0:00:20.5]} 89. Ke4 {[%clk 0:00:09]}
89... Re1+ {[%clk 0:00:20.7]} 90. Kd5 {[%clk 0:00:09.5]} 90... Re8 {[%clk
0:00:21.3]} 91. Nc6 {[%clk 0:00:09.1]} 91... Rh8 {[%clk 0:00:20.7]} 92. Kd6
{[%clk 0:00:09.2]} 92... Rh2 {[%clk 0:00:20.8]} 93. Kd5 {[%clk 0:00:09.1]} 93...
Rd2+ {[%clk 0:00:20.2]} 94. Nd4 {[%clk 0:00:09.8]} 94... Rd1 {[%clk 0:00:21]}
95. Ke4 {[%clk 0:00:10.2]} 95... Ra1 {[%clk 0:00:20.8]} 96. Kd5 {[%clk
0:00:10.4]} 96... Ra5+ {[%clk 0:00:21.4]} 97. Kd6 {[%clk 0:00:10.6]} 97... Kg5
{[%clk 0:00:20.9]} 98. Ne6+ {[%clk 0:00:10]} 98... Kf5 {[%clk 0:00:21.1]} 99.
Nd4+ {[%clk 0:00:09.2]} 99... Ke4 {[%clk 0:00:21.6]} 100. Ne6 {[%clk 0:00:08.4]}
100... Rd5+ {[%clk 0:00:22.2]} 101. Kc6 {[%clk 0:00:06.5]} 101... Ke5 {[%clk
0:00:22.2]} 102. Nc5 {[%clk 0:00:06.9]} 102... Rd6+ {[%clk 0:00:22.5]} 103. Kb5
{[%clk 0:00:06.7]} 103... Kd5 {[%clk 0:00:23.2]} 104. Nb3 {[%clk 0:00:05.6]}
104... Rd8 {[%clk 0:00:23.5]} 105. Kb4 {[%clk 0:00:05.9]} 105... Rc8 {[%clk
0:00:24.2]} 106. Nd2 {[%clk 0:00:03.9]} 106... Kd4 {[%clk 0:00:24.7]} 107. Nb3+
{[%clk 0:00:03.7]} 107... Kd3 {[%clk 0:00:25.4]} 108. Nc5+ {[%clk 0:00:04.2]}
108... Kd4 {[%clk 0:00:24.4]} 109. Nb3+ {[%clk 0:00:04]} 109... Kd5 {[%clk
0:00:25.2]} 110. Ka3 {[%clk 0:00:03.4]} 110... Kc4 {[%clk 0:00:25.2]} 111. Na5+
{[%clk 0:00:02.5]} 111... Kc3 {[%clk 0:00:25.6]} 112. Ka4 {[%clk 0:00:03.2]}
112... Rc5 {[%clk 0:00:26]} 113. Nb7 {[%clk 0:00:02.9]} 113... Rd5 {[%clk
0:00:25.1]} 114. Na5 {[%clk 0:00:02.6]} 114... Rd7 {[%clk 0:00:23.5]} 115. Kb5
{[%clk 0:00:02.9]} 115... Rd5+ {[%clk 0:00:23.4]} 116. Kb6 {[%clk 0:00:03.1]}
116... Kb4 {[%clk 0:00:23.9]} 117. Nc6+ {[%clk 0:00:04]} 117... Ka4 {[%clk
0:00:23.8]} 118. Ne7 {[%clk 0:00:04.6]} 118... Re5 {[%clk 0:00:23.7]} 119. Nc6
{[%clk 0:00:05.2]} 119... Rg5 {[%clk 0:00:24.1]} 120. Ne7 {[%clk 0:00:05.5]}
120... Kb4 {[%clk 0:00:23.2]} 121. Nc6+ {[%clk 0:00:06]} 121... Kc4 {[%clk
0:00:24.1]} 122. Ne7 {[%clk 0:00:06.3]} 122... Re5 {[%clk 0:00:23.8]} 123. Nc6
{[%clk 0:00:06.6]} 123... Re6 {[%clk 0:00:24.5]} 124. Kc7 {[%clk 0:00:04.9]}
124... Kc5 {[%clk 0:00:25.2]} 125. Nd8 {[%clk 0:00:04.1]} 125... Re7+ {[%clk
0:00:25.8]} 126. Kc8 {[%clk 0:00:03.1]} 126... Kb6 {[%clk 0:00:26.3]} 127. Kb8
{[%clk 0:00:02.4]} 127... Rc7 {[%clk 0:00:26.9]} 128. Ne6 {[%clk 0:00:02.1]}
128... Rd7 {[%clk 0:00:27.5]} 1/2-1/2

[Event "Early-Titled-Tuesday-Blitz-January-16-2024"]
[Site "Chess.com"]
[Date "2024.01.16"]
[Round "2"]
[White "hmatyi07"]
[Black "SARGISMV"]
[Result "0-1"]
[WhiteElo "2185"]
[BlackElo "2483"]
[TimeControl "180+1"]
[EndTime "8:12:51 PST"]
[Termination "SARGISMV won by checkmate"]

1. e4 {[%clk 0:03:00.9]} 1... e6 {[%clk 0:02:59.3]} 2. d4 {[%clk 0:02:58.8]}
2... d5 {[%clk 0:02:59.9]} 3. e5 {[%clk 0:02:58.1]} 3... c5 {[%clk 0:02:59.9]}
4. c3 {[%clk 0:02:58.1]} 4... Nc6 {[%clk 0:02:58.5]} 5. Nf3 {[%clk 0:02:58.8]}
5... Nge7 {[%clk 0:02:58.8]} 6. Bd3 {[%clk 0:02:57.6]} 6... cxd4 {[%clk
0:02:58.3]} 7. O-O {[%clk 0:02:57.6]} 7... dxc3 {[%clk 0:02:55.8]} 8. Nxc3
{[%clk 0:02:58.5]} 8... Bd7 {[%clk 0:02:54.4]} 9. h4 {[%clk 0:02:57.9]} 9... Ng6
{[%clk 0:02:53.8]} 10. h5 {[%clk 0:02:52.5]} 10... Ngxe5 {[%clk 0:02:53.7]} 11.
Nxe5 {[%clk 0:02:51.9]} 11... Nxe5 {[%clk 0:02:54.6]} 12. Bc2 {[%clk 0:02:42.9]}
12... h6 {[%clk 0:02:46.8]} 13. Re1 {[%clk 0:02:38.2]} 13... Bd6 {[%clk
0:02:31.8]} 14. f4 {[%clk 0:02:35.1]} 14... Bc5+ {[%clk 0:02:30.9]} 15. Kh1
{[%clk 0:02:33.3]} 15... Qh4# {[%clk 0:02:30]} 0-1

[Event "Early-Titled-Tuesday-Blitz-January-16-2024"]
[Site "Chess.com"]
[Date "2024.01.16"]
[Round "2"]
[White "UK_23"]
[Black "NelsonLinda"]
[Result "0-1"]
[WhiteElo "2370"]
[BlackElo "2622"]
[TimeControl "180+1"]
[EndTime "8:13:41 PST"]
[Termination "NelsonLinda won by resignation"]

1. e4 {[%clk 0:03:00.9]} 1... c5 {[%clk 0:03:00.2]} 2. Nf3 {[%clk 0:03:00.9]}
2... e6 {[%clk 0:03:00.8]} 3. g3 {[%clk 0:03:00.7]} 3... Nc6 {[%clk 0:02:58.9]}
4. Bg2 {[%clk 0:03:01.1]} 4... Nf6 {[%clk 0:02:59.3]} 5. Qe2 {[%clk 0:03:00.9]}
5... e5 {[%clk 0:02:58.9]} 6. Nc3 {[%clk 0:03:00.5]} 6... d6 {[%clk 0:02:42.5]}
7. Nd5 {[%clk 0:02:59.3]} 7... Bg4 {[%clk 0:02:40.3]} 8. c3 {[%clk 0:02:58]}
8... g6 {[%clk 0:02:12.6]} 9. h3 {[%clk 0:02:57]} 9... Be6 {[%clk 0:02:12.7]}
10. Nh4 {[%clk 0:02:48.9]} 10... Bg7 {[%clk 0:02:09.3]} 11. d3 {[%clk
0:02:44.6]} 11... O-O {[%clk 0:01:59.6]} 12. O-O {[%clk 0:02:43.5]} 12... Nd7
{[%clk 0:01:56]} 13. Kh2 {[%clk 0:02:39.2]} 13... Kh8 {[%clk 0:01:53]} 14. f4
{[%clk 0:02:37.3]} 14... exf4 {[%clk 0:01:53.3]} 15. gxf4 {[%clk 0:02:38.2]}
15... Qxh4 {[%clk 0:01:53]} 0-1

[Event "Early-Titled-Tuesday-Blitz-January-16-2024"]
[Site "Chess.com"]
[Date "2024.01.16"]
[Round "2"]
[White "LeoWin2012"]
[Black "NovoselovRoman"]
[Result "0-1"]
[WhiteElo "2226"]
[BlackElo "2571"]
[TimeControl "180+1"]
[EndTime "8:13:49 PST"]
[Termination "NovoselovRoman won by checkmate"]

1. e4 {[%clk 0:03:00.9]} 1... e6 {[%clk 0:03:00]} 2. d4 {[%clk 0:03:01.1]} 2...
d5 {[%clk 0:03:00.8]} 3. exd5 {[%clk 0:02:58.8]} 3... exd5 {[%clk 0:03:01.7]} 4.
Bd3 {[%clk 0:02:59.1]} 4... Nf6 {[%clk 0:03:02.1]} 5. h3 {[%clk 0:02:56.3]} 5...
Bd6 {[%clk 0:03:02]} 6. c3 {[%clk 0:02:56.6]} 6... O-O {[%clk 0:03:02.5]} 7. Nf3
{[%clk 0:02:56.9]} 7... Re8+ {[%clk 0:03:02.4]} 8. Be3 {[%clk 0:02:57.1]} 8...
Nc6 {[%clk 0:03:01.2]} 9. O-O {[%clk 0:02:56.9]} 9... Be6 {[%clk 0:03:01.1]} 10.
Nbd2 {[%clk 0:02:57.1]} 10... Qd7 {[%clk 0:03:00.6]} 11. Qc2 {[%clk 0:02:54]}
11... Bxh3 {[%clk 0:02:51.1]} 12. gxh3 {[%clk 0:02:51.7]} 12... Qxh3 {[%clk
0:02:52]} 13. Rfe1 {[%clk 0:02:42.4]} 13... Ng4 {[%clk 0:02:51.8]} 14. Bf5
{[%clk 0:02:06.7]} 14... Rxe3 {[%clk 0:02:40.6]} 15. Rxe3 {[%clk 0:01:41.5]}
15... Bh2+ {[%clk 0:02:37]} 16. Kh1 {[%clk 0:01:33.3]} 16... Nxf2# {[%clk
0:02:36.5]} 0-1

[Event "Early-Titled-Tuesday-Blitz-January-16-2024"]
[Site "Chess.com"]
[Date "2024.01.16"]
[Round "2"]
[White "FranciscodelaF"]
[Black "DanilNajdin"]
[Result "0-1"]
[WhiteElo "2232"]
[BlackElo "2503"]
[TimeControl "180+1"]
[EndTime "8:13:50 PST"]
[Termination "DanilNajdin won by resignation"]

1. d4 {[%clk 0:03:00.9]} 1... Nf6 {[%clk 0:02:58.8]} 2. Nf3 {[%clk 0:03:00.6]}
2... d5 {[%clk 0:02:57.3]} 3. Bf4 {[%clk 0:02:59.4]} 3... c5 {[%clk 0:02:54.8]}
4. e3 {[%clk 0:02:55.6]} 4... cxd4 {[%clk 0:02:50.2]} 5. exd4 {[%clk 0:02:55]}
5... a6 {[%clk 0:02:49.7]} 6. c3 {[%clk 0:02:52]} 6... Nc6 {[%clk 0:02:46.6]} 7.
Bd3 {[%clk 0:02:48.1]} 7... Bg4 {[%clk 0:02:46]} 8. Nbd2 {[%clk 0:02:41.7]} 8...
e6 {[%clk 0:02:45.4]} 9. Qb3 {[%clk 0:02:40.3]} 9... b5 {[%clk 0:02:25.6]} 10.
h3 {[%clk 0:02:15.8]} 10... Bh5 {[%clk 0:02:23.9]} 11. O-O {[%clk 0:02:14.4]}
11... Bg6 {[%clk 0:02:20.6]} 12. Bc4 {[%clk 0:01:47.2]} 12... dxc4 {[%clk
0:02:13.6]} 0-1

[Event "Early-Titled-Tuesday-Blitz-January-16-2024"]
[Site "Chess.com"]
[Date "2024.01.16"]
[Round "2"]
[White "quvnoq_muxlis"]
[Black "Firouzja2003"]
[Result "0-1"]
[WhiteElo "2670"]
[BlackElo "3158"]
[TimeControl "180+1"]
[EndTime "8:14:17 PST"]
[Termination "Firouzja2003 won by resignation"]

1. e4 {[%clk 0:03:00.9]} 1... c5 {[%clk 0:02:57.1]} 2. Nf3 {[%clk 0:03:00.5]}
2... d6 {[%clk 0:02:57.4]} 3. d4 {[%clk 0:03:01.1]} 3... cxd4 {[%clk 0:02:57.7]}
4. Nxd4 {[%clk 0:03:02]} 4... Nf6 {[%clk 0:02:58.2]} 5. Nc3 {[%clk 0:03:02.6]}
5... a6 {[%clk 0:02:58.7]} 6. Be2 {[%clk 0:03:03.3]} 6... e5 {[%clk 0:02:58]} 7.
Nb3 {[%clk 0:03:03.8]} 7... Be7 {[%clk 0:02:58.4]} 8. g4 {[%clk 0:03:04.1]} 8...
h6 {[%clk 0:02:57.3]} 9. h4 {[%clk 0:03:04.7]} 9... b5 {[%clk 0:02:57]} 10. Be3
{[%clk 0:03:03.7]} 10... Bb7 {[%clk 0:02:56.5]} 11. Bf3 {[%clk 0:03:02.1]} 11...
b4 {[%clk 0:02:54.7]} 12. Nd5 {[%clk 0:03:02.3]} 12... Nxd5 {[%clk 0:02:55.1]}
13. exd5 {[%clk 0:03:03.2]} 13... a5 {[%clk 0:02:54.1]} 14. Nd2 {[%clk
0:02:40.1]} 14... Nd7 {[%clk 0:02:48.7]} 15. a3 {[%clk 0:02:25.8]} 15... Nf6
{[%clk 0:02:36.3]} 16. Nc4 {[%clk 0:02:16.2]} 16... e4 {[%clk 0:02:36.4]} 17.
Bg2 {[%clk 0:02:16.3]} 17... Nxd5 {[%clk 0:02:36.4]} 18. Bd4 {[%clk 0:02:11.2]}
18... Nf4 {[%clk 0:02:35.4]} 19. Bf1 {[%clk 0:01:48.7]} 19... e3 {[%clk
0:02:35.8]} 20. Bxe3 {[%clk 0:01:48.5]} 20... Bxh1 {[%clk 0:02:36]} 21. Bxf4
{[%clk 0:01:48.8]} 21... d5 {[%clk 0:02:36.6]} 22. Ne5 {[%clk 0:01:47]} 22...
O-O {[%clk 0:02:36.5]} 23. Be2 {[%clk 0:01:36.7]} 23... Bxh4 {[%clk 0:02:35.5]}
24. Kf1 {[%clk 0:01:37.1]} 24... Qf6 {[%clk 0:02:35]} 25. Qd2 {[%clk 0:01:28.5]}
25... g5 {[%clk 0:02:34.9]} 0-1

[Event "Early-Titled-Tuesday-Blitz-January-16-2024"]
[Site "Chess.com"]
[Date "2024.01.16"]
[Round "2"]
[White "Konavets"]
[Black "SahibSinghKnight"]
[Result "0-1"]
[WhiteElo "3151"]
[BlackElo "2687"]
[TimeControl "180+1"]
[EndTime "8:14:36 PST"]
[Termination "SahibSinghKnight won by resignation"]

1. e4 {[%clk 0:03:00.9]} 1... e6 {[%clk 0:02:59.4]} 2. d4 {[%clk 0:03:01.1]}
2... d5 {[%clk 0:02:59.8]} 3. Nc3 {[%clk 0:03:02]} 3... Nf6 {[%clk 0:02:58.5]}
4. Bg5 {[%clk 0:02:59.5]} 4... Bb4 {[%clk 0:02:57.9]} 5. e5 {[%clk 0:02:58.4]}
5... h6 {[%clk 0:02:58.2]} 6. Bc1 {[%clk 0:02:58.8]} 6... Ne4 {[%clk 0:02:56.9]}
7. Qg4 {[%clk 0:02:56.5]} 7... Kf8 {[%clk 0:02:53.1]} 8. Ne2 {[%clk 0:02:55.9]}
8... c5 {[%clk 0:02:52.4]} 9. a3 {[%clk 0:02:56]} 9... Bxc3+ {[%clk 0:02:47.2]}
10. bxc3 {[%clk 0:02:56.9]} 10... cxd4 {[%clk 0:02:47.7]} 11. cxd4 {[%clk
0:02:56.1]} 11... Qa5+ {[%clk 0:02:43.3]} 12. c3 {[%clk 0:02:56.1]} 12... Nc6
{[%clk 0:02:43.4]} 13. f3 {[%clk 0:02:56.5]} 13... Nxd4 {[%clk 0:02:30.3]} 14.
fxe4 {[%clk 0:02:54]} 14... Nc2+ {[%clk 0:02:30.5]} 15. Kf2 {[%clk 0:02:51.8]}
15... Qc5+ {[%clk 0:02:22.4]} 16. Nd4 {[%clk 0:02:50.3]} 16... Nxd4 {[%clk
0:02:15.4]} 17. Be3 {[%clk 0:02:46.8]} 17... Qxc3 {[%clk 0:02:15]} 18. Rd1
{[%clk 0:02:45]} 18... Nc2 {[%clk 0:02:09.1]} 19. Bf4 {[%clk 0:02:28.8]} 19...
Qc5+ {[%clk 0:02:01.9]} 20. Kg3 {[%clk 0:02:20.9]} 20... Ne3 {[%clk 0:01:48.2]}
21. Qh4 {[%clk 0:02:21.2]} 21... g5 {[%clk 0:01:32.5]} 22. Bxg5 {[%clk
0:02:20.9]} 22... Nxd1 {[%clk 0:01:33.1]} 0-1

[Event "Early-Titled-Tuesday-Blitz-January-16-2024"]
[Site "Chess.com"]
[Date "2024.01.16"]
[Round "2"]
[White "cristiano78"]
[Black "Chess_Caio2007"]
[Result "0-1"]
[WhiteElo "2265"]
[BlackElo "2518"]
[TimeControl "180+1"]
[EndTime "8:14:40 PST"]
[Termination "Chess_Caio2007 won by resignation"]

1. d4 {[%clk 0:03:00]} 1... Nf6 {[%clk 0:02:59.7]} 2. c4 {[%clk 0:03:00]} 2...
g6 {[%clk 0:02:59.3]} 3. Nc3 {[%clk 0:02:59.9]} 3... d5 {[%clk 0:02:59.4]} 4.
Bf4 {[%clk 0:02:59.8]} 4... Bg7 {[%clk 0:02:59.2]} 5. e3 {[%clk 0:03:00]} 5...
O-O {[%clk 0:02:57.9]} 6. Nf3 {[%clk 0:03:00.1]} 6... c5 {[%clk 0:02:57.4]} 7.
dxc5 {[%clk 0:02:59.8]} 7... Qa5 {[%clk 0:02:57]} 8. Rc1 {[%clk 0:03:00.4]} 8...
dxc4 {[%clk 0:02:56.1]} 9. Bxc4 {[%clk 0:03:00.2]} 9... Nc6 {[%clk 0:02:54.1]}
10. O-O {[%clk 0:02:59.9]} 10... Qxc5 {[%clk 0:02:53.5]} 11. Nb5 {[%clk
0:03:00]} 11... Qh5 {[%clk 0:02:53]} 12. Be2 {[%clk 0:02:58.5]} 12... Bg4 {[%clk
0:02:51.6]} 13. h3 {[%clk 0:02:58.4]} 13... Bxf3 {[%clk 0:02:51.4]} 14. Bxf3
{[%clk 0:02:58.5]} 14... Qxb5 {[%clk 0:02:51.2]} 15. b3 {[%clk 0:02:47.7]} 15...
Rad8 {[%clk 0:02:49.6]} 16. Qc2 {[%clk 0:02:47.6]} 16... Nd5 {[%clk 0:02:49.3]}
17. Bg3 {[%clk 0:02:47.1]} 17... Ndb4 {[%clk 0:02:47.8]} 18. Qc5 {[%clk
0:02:45.8]} 18... Qxc5 {[%clk 0:02:44.3]} 19. Rxc5 {[%clk 0:02:45.7]} 19... Nxa2
{[%clk 0:02:32.9]} 20. Bxc6 {[%clk 0:02:44.5]} 20... bxc6 {[%clk 0:02:33.8]} 21.
Rxc6 {[%clk 0:02:44.1]} 21... Rd7 {[%clk 0:02:25.1]} 22. Rc4 {[%clk 0:02:35.2]}
22... Nc3 {[%clk 0:02:18.8]} 23. Kh2 {[%clk 0:02:31.8]} 23... Nb5 {[%clk
0:02:00.9]} 24. Rb4 {[%clk 0:02:28.6]} 24... Nd6 {[%clk 0:01:58.7]} 25. Rd1
{[%clk 0:02:26.3]} 25... Rfd8 {[%clk 0:01:57.4]} 26. Ra4 {[%clk 0:02:23.8]}
26... Nf5 {[%clk 0:01:55.8]} 27. Rxd7 {[%clk 0:02:22.2]} 27... Rxd7 {[%clk
0:01:56.7]} 28. e4 {[%clk 0:02:21.6]} 28... Nxg3 {[%clk 0:01:56]} 29. Kxg3
{[%clk 0:02:21.8]} 29... Bd4 {[%clk 0:01:53.5]} 30. f4 {[%clk 0:02:17.9]} 30...
Bb6 {[%clk 0:01:53.9]} 31. Ra3 {[%clk 0:02:13.8]} 31... Rd3+ {[%clk 0:01:54.2]}
32. Kh2 {[%clk 0:02:13.8]} 32... Re3 {[%clk 0:01:54.8]} 33. e5 {[%clk
0:02:13.5]} 33... Rc3 {[%clk 0:01:48.6]} 0-1

[Event "Early-Titled-Tuesday-Blitz-January-16-2024"]
[Site "Chess.com"]
[Date "2024.01.16"]
[Round "2"]
[White "Grossboss19"]
[Black "FrenchHarvey"]
[Result "0-1"]
[WhiteElo "2547"]
[BlackElo "2805"]
[TimeControl "180+1"]
[EndTime "8:14:47 PST"]
[Termination "FrenchHarvey won by checkmate"]

1. c4 {[%clk 0:03:00.9]} 1... e5 {[%clk 0:02:59.9]} 2. Nc3 {[%clk 0:02:59.7]}
2... Nf6 {[%clk 0:03:00.2]} 3. Nf3 {[%clk 0:02:59.6]} 3... Nc6 {[%clk
0:03:00.5]} 4. g3 {[%clk 0:03:00.2]} 4... Nd4 {[%clk 0:03:00.3]} 5. Bg2 {[%clk
0:02:53.5]} 5... Nxf3+ {[%clk 0:03:00]} 6. Bxf3 {[%clk 0:02:54.4]} 6... Bb4
{[%clk 0:02:58.1]} 7. O-O {[%clk 0:02:48.6]} 7... O-O {[%clk 0:02:57.2]} 8. Qc2
{[%clk 0:02:46.4]} 8... Bxc3 {[%clk 0:02:54]} 9. Qxc3 {[%clk 0:02:45.9]} 9... d6
{[%clk 0:02:54.1]} 10. d3 {[%clk 0:02:42.2]} 10... h6 {[%clk 0:02:50.2]} 11. b4
{[%clk 0:02:39.6]} 11... Bg4 {[%clk 0:02:46.4]} 12. Bxb7 {[%clk 0:02:22.8]}
12... Bxe2 {[%clk 0:02:46.5]} 13. Re1 {[%clk 0:02:18.6]} 13... Rb8 {[%clk
0:02:45.2]} 14. Bg2 {[%clk 0:02:18.6]} 14... Bg4 {[%clk 0:02:43]} 15. b5 {[%clk
0:02:17.8]} 15... Qd7 {[%clk 0:02:40.6]} 16. Be3 {[%clk 0:02:08.4]} 16... Bh3
{[%clk 0:02:26.8]} 17. Bc6 {[%clk 0:02:05.4]} 17... Qf5 {[%clk 0:02:24.4]} 18.
Bxa7 {[%clk 0:02:02.3]} 18... Rbd8 {[%clk 0:02:23.3]} 19. a4 {[%clk 0:01:50.7]}
19... d5 {[%clk 0:02:23.6]} 20. Rxe5 {[%clk 0:01:38.9]} 20... Qf3 {[%clk
0:02:22.7]} 21. Bxd5 {[%clk 0:01:06]} 21... Nxd5 {[%clk 0:02:21.1]} 22. cxd5
{[%clk 0:01:00.9]} 22... Qg2# {[%clk 0:02:20.1]} 0-1